Cogmind - Beta 10.2 @@@ ROGUE MODE // 2021.05.24 @ 12:42:07 Player: sentrybuster Result: Destroyed by H-88 Terminator with KE Penetrator Performance ------------- Evolutions (8) 4000 Regions Visited (21) 4200 Robots Destroyed (178) 890 Value Destroyed (6977) 6977 Prototype IDs (37) 740 Alien Tech Used (0) 0 Bonus (2573) 2573 TOTAL SCORE: 19380 Bonus ------- High Alert Combat Kills 61 Follower Combat Kills 834 Met Data Miner 300 Met Warlord at Base 500 MAIN.C Attacked Warlord 500 Warlord Defense Kill 534 Friendly Fire -156 Cogmind --------- Core Integrity 0/1450 Matter 295/300 Energy 99/100 System Corruption 2% Temperature Cool (0) Movement Core (50) Location -2/Testing Parts ------- > --- POWER (2) -------- (None) > --- PROPULSION (6) --- (None) > --- UTILITY (10) ----- System Mapper > --- WEAPON (5) ------- (None) > --- INVENTORY (4) ---- High-powered Disruptor Cannon Peak State ------------ > --- POWER ------------ Vortex Chain Reactor > --- PROPULSION ------- Medium Treads Medium Treads Armored Medium Treads Armored Medium Treads > --- UTILITY ---------- Advanced Heat Sink High-capacity Storage Unit High-capacity Storage Unit Enhanced Optical Array Advanced Signal Interpreter 0b10 Decoder Chip [Generic] Layered Heavy Armor Plating Improved Remote Force Field > --- WEAPON ----------- Cooled Phase Gun Compact HERF Cannon Linear Accelerator Plasma Lance > --- INVENTORY -------- Cooled Antimatter Reactor Experimental Power Amplifier Matter Compressor Long-range Sensor Array Long-range Sensor Array Advanced Targeting Computer Heavy Armor Plating Layered Heavy Armor Plating Experimental Thermal Shield Advanced Remote Shield System Mapper Improved System Backup Module Minesniffer Drone Bay HERF Cannon Nova Cannon Railgun Molecular Deconstructor [Rating: 124] Favorites ----------- Power Heavy Deuterium Engine Engine Heavy Deuterium Engine Power Core Neutrino Core Reactor Antimatter Reactor Propulsion Medium Treads Treads Medium Treads Leg Aluminum Leg Wheel High-density Centrium Wheel Flight Unit Cooled Field Propulsion Drive Utility High-capacity Storage Unit Device Long-range Sensor Array Storage High-capacity Storage Unit Processor Enhanced Optical Array Hackware System Shield Protection Medium Regenerative Plating Weapon Precision Assault Rifle Energy Gun Improved Lightning Gun Energy Cannon EM Pulse Cannon Ballistic Gun Precision Assault Rifle Ballistic Cannon Magnetic Acceleration Cannon Launcher Improved Grenade Launcher Impact Weapon Gravity Flail Slashing Weapon Plasma Sword Piercing Weapon Plasma Lance Build | -11 -10 -10 -10 -9 -8 -7 -6 -6 -6 -6 -5 -5 -5 -4 -4 -4 -4 -3 -3 -2 -2 ------- Run | Scr Mat Min Exi Min Mat Fac Fac Low Low Dat Pro Fac Ext Fac Upp Upp War Pro Res Res Tes Slots Evolved 16 | . . . . . 4 2 2 . . . . 2 . 2 . . . . 2 2 . Power 1 | . . . . . . . . . . . . . . . . . . . 1 . . Propulsion 4 | . . . . . 1 1 . . . . . 1 . . . . . . 1 . . Utility 8 | . . . . . 2 1 1 . . . . 1 . 2 . . . . . 1 . Weapon 3 | . . . . . 1 . 1 . . . . . . . . . . . . 1 . Parts Attached 251 | 9 7 5 . . 31 24 16 7 8 . 16 14 16 3 11 9 12 11 34 5 13 Power 21 | 1 4 . . . 3 1 . . . . 1 . 1 . 1 . . . 5 1 3 Engine 9 | 1 4 . . . 3 1 . . . . . . . . . . . . . . . Core 1 | . . . . . . . . . . . . . . . 1 . . . . . . Reactor 11 | . . . . . . . . . . . 1 . 1 . . . . . 5 1 3 Propulsion 44 | 4 1 2 . . 8 3 . . . . 2 4 4 1 . 1 1 2 6 1 4 Treads 32 | 2 . . . . 8 3 . . . . 2 4 4 1 . 1 1 2 4 . . Leg 8 | 2 1 2 . . . . . . . . . . . . . . . . . . 3 Wheel 3 | . . . . . . . . . . . . . . . . . . . 2 1 . Hover . | . . . . . . . . . . . . . . . . . . . . . . Flight 1 | . . . . . . . . . . . . . . . . . . . . . 1 Utility 112 | 2 1 . . . 9 17 9 4 6 . 9 6 5 2 8 6 7 6 9 3 3 Device 81 | . . . . . 8 11 7 3 6 . 8 6 2 2 4 4 6 5 5 2 2 Storage 10 | 2 1 . . . . 4 . . . . . . . . 2 1 . . . . . Processor 9 | . . . . . 1 2 1 1 . . 1 . . . . . 1 1 . 1 . Hackware 2 | . . . . . . . 1 . . . . . . . . . . . . . 1 Protection 10 | . . . . . . . . . . . . . 3 . 2 1 . . 4 . . Artifact . | . . . . . . . . . . . . . . . . . . . . . . Weapon 74 | 2 1 3 . . 11 3 7 3 2 . 4 4 6 . 2 2 4 3 14 . 3 Energy Gun 30 | 2 . 2 . . 6 1 6 2 1 . . 3 . . 1 . 1 1 4 . . Energy Cannon 15 | . . . . . 1 . . . . . . . 2 . . 2 2 2 3 . 3 Ballistic Gun 10 | . . . . . 2 1 1 . . . 1 1 2 . . . . . 2 . . Ballistic Cannon 9 | . 1 1 . . 2 . . . . . 1 . . . 1 . 1 . 2 . . Launcher 7 | . . . . . . 1 . 1 1 . 2 . 2 . . . . . . . . Special Weapon . | . . . . . . . . . . . . . . . . . . . . . . Impact Weapon 1 | . . . . . . . . . . . . . . . . . . . 1 . . Slashing Weapon 1 | . . . . . . . . . . . . . . . . . . . 1 . . Piercing Weapon 1 | . . . . . . . . . . . . . . . . . . . 1 . . Special Melee Weapon . | . . . . . . . . . . . . . . . . . . . . . . Unidentified Prototypes 25 | . . . . . 2 1 1 . . . 1 . 1 . . . 4 1 10 . 4 Parts Lost 66 | . . 2 . . 2 1 . . . . 2 2 4 . 2 4 7 6 16 . 18 Power 6 | . . . . . . . . . . . . . . . 1 . 1 . . . 4 Propulsion 18 | . . . . . . . . . . . . 1 1 . . 1 2 3 4 . 6 Utility 18 | . . . . . . . . . . . . . 1 . . 1 1 2 7 . 6 Weapon 24 | . . 2 . . 2 1 . . . . 2 1 2 . 1 2 3 1 5 . 2 Highest Loss Streak 18 | . . 2 . . 1 1 . . . . 2 1 2 . 2 4 5 2 15 . 18 Average Slot Usage (%) 91 | . 99 100 100 100 96 99 97 100 100 100 98 98 97 94 93 90 92 54 69 36 39 Engine 3 | . 13 14 14 14 9 7 6 6 6 6 . . . . . . . . . . . Reactor 1 | . . . . . . . . . . . 5 5 5 5 3 . . . 3 . 2 Treads 21 | . . . . . 25 30 26 26 26 26 26 28 27 21 21 19 20 8 13 . . Leg 1 | . 28 28 28 28 . . . . . . . . . . . . . . . . . Device 8 | . . . . . 8 7 6 6 6 6 6 10 5 15 13 12 14 14 8 9 9 Storage 13 | . 28 28 28 28 18 15 13 13 13 13 13 11 11 10 10 11 10 10 9 8 6 Processor 13 | . . . . . 8 14 13 15 20 20 20 17 17 15 15 15 14 10 13 4 7 Protection 1 | . . . . . . . . . . . . . 4 5 5 5 5 2 3 . . Energy Gun 9 | . 22 14 14 14 11 6 14 17 19 20 13 6 6 5 5 6 1 . 5 . . Energy Cannon 1 | . . . . . 1 2 . . . . . . 1 . . 1 7 1 3 . . Ballistic Gun 5 | . . . . . 4 12 9 6 6 6 5 3 6 10 8 5 1 . 1 . . Ballistic Cannon 3 | . 5 13 14 14 9 . . . . . . 5 5 5 5 5 8 4 2 . . Naked Turns 1 | . . . . . . . . . . . . . . . . . . . . . 1 Heaviest Build 163 | 15 22 20 20 20 35 89 95 98 95 93 105 108 116 115 122 122 132 104 163 107 117 Greatest Support 144 | 20 20 20 20 20 76 104 98 98 98 98 106 134 124 136 136 144 144 70 110 40 50 Greatest Overweight (x) 5 | 1 1 . . . 1 . . . . . 1 . 1 . . 1 1 4 5 3 4 Average Overweight (x) . | . . . . . . . . . . . . . . . . . . 2 1 2 1 Largest Inventory Capacity 20 | 8 10 10 10 10 10 20 20 20 20 20 20 20 20 20 20 20 20 20 20 20 20 Average Capacity 18 | 5 9 10 10 10 10 19 20 20 20 20 20 20 20 20 20 20 20 20 20 20 17 Most Carried 20 | 5 9 10 9 8 10 20 20 20 20 20 20 20 20 20 20 20 20 20 20 18 18 Average Carried 17 | 3 7 9 8 8 9 18 19 19 19 20 19 19 19 19 19 19 19 17 18 16 13 Final Capacity 20 | 8 10 10 10 10 10 20 20 20 20 20 20 20 20 20 20 20 20 20 20 20 4 Final Carried 20 | 4 9 8 8 8 10 20 20 20 20 20 19 20 20 20 19 19 18 17 18 13 2 Class Distribution -------------------- 45% | Hauler-Skirmisher 23% | Hauler-Mutant 9% | Mutant 6% | Scavenger-Mutant 4% | Scavenger-Skirmisher 4% | Skirmisher Dominant Class ---------------- Mutant | -10/Materials Mutant | -10/Mines Mutant | -10/Exiles Mutant | -9/Mines Skirmisher | -8/Materials Hauler-Skirmisher | -7/Factory Hauler-Skirmisher | -6/Factory Hauler-Skirmisher | -6/Lower Caves Hauler-Mutant | -6/Lower Caves Hauler-Mutant | -6/Data Miner Hauler-Skirmisher | -5/Proximity Caves Hauler-Skirmisher | -5/Factory Scavenger-Mutant | -5/Extension Scavenger-Mutant | -4/Factory Scavenger-Mutant | -4/Upper Caves Hauler-Skirmisher | -4/Upper Caves Hauler-Skirmisher | -4/Warlord Hauler-Mutant | -3/Proximity Caves Hauler-Skirmisher | -3/Research Hauler-Mutant | -2/Research Hauler-Mutant | -2/Testing Resources | -11 -10 -10 -10 -9 -8 -7 -6 -6 -6 -6 -5 -5 -5 -4 -4 -4 -4 -3 -3 -2 -2 ----------- Run | Scr Mat Min Exi Min Mat Fac Fac Low Low Dat Pro Fac Ext Fac Upp Upp War Pro Res Res Tes Matter Collected 6052 | 257 167 155 104 . 540 550 494 399 115 . 454 352 484 . 188 129 256 198 985 . 225 Remotely . | . . . . . . . . . . . . . . . . . . . . . . Salvage Created 7985 | 55 437 245 . . 936 706 478 395 319 . 898 511 807 . 129 76 79 143 1349 . 422 Parts 357 | 3 25 12 . . 46 35 17 18 4 . 47 37 31 . 8 . 2 7 49 . 16 Haulers Intercepted 9 | . 2 . . . 2 . 1 . . . . 1 . . . . . . 3 . . Recyclers Shooed 4 | . 1 . . . 2 . . . . . . . 1 . . . . . . . . Parts Field Recycled . | . . . . . . . . . . . . . . . . . . . . . . Retrieved Matter . | . . . . . . . . . . . . . . . . . . . . . . Parts Self-Destructed 174 | . . . . . . . . 16 5 . 39 . . . 9 . 98 7 . . . Prevented 34 | . . . . . . . . . 1 . 14 . . . . . 19 . . . . Kills | -11 -10 -10 -10 -9 -8 -7 -6 -6 -6 -6 -5 -5 -5 -4 -4 -4 -4 -3 -3 -2 -2 ------- Run | Scr Mat Min Exi Min Mat Fac Fac Low Low Dat Pro Fac Ext Fac Upp Upp War Pro Res Res Tes Combat Hostiles Destroyed 136 | . 9 6 . . 16 11 3 13 3 . 28 6 9 . 3 5 4 5 10 . 5 Melee 1 | . . . . . . . . . . . . . . . . . 1 . . . . Guns 65 | . 7 2 . . 8 8 3 4 2 . 10 1 5 . 2 4 . 2 7 . . Cannons 32 | . 2 2 . . 7 . . . . . 3 5 4 . 1 1 3 3 1 . . AOE 31 | . . 2 . . 1 3 . 8 . . 15 . . . . . . . . . 2 Classes Destroyed 19 | 1 6 1 . . 4 1 . 1 . . 2 . 1 . . 1 1 . . . . Worker 7 | . . . . . 1 1 1 . . . . 3 . . . . . . 1 . . Builder 2 | . 1 . . . . . . . . . . 1 . . . . . . . . . Tunneler 2 | . 1 . . . . 1 . . . . . . . . . . . . . . . Hauler 9 | . 2 . . . 2 . 1 . . . . 1 . . . . . . 3 . . Recycler 12 | 1 1 1 . . 2 3 1 . . . . . 1 . . . . . 2 . . Mechanic 2 | . . 1 . . . . 1 . . . . . . . . . . . . . . Operator 4 | . . . . . 2 1 1 . . . . . . . . . . . . . . Watcher 9 | . 2 . . . 2 2 . . . . . . 2 . . . . . 1 . . Swarmer 42 | . 6 4 . . 3 3 . 9 . . 15 . . . 2 . . . . . . Grunt 31 | . 3 2 . . 4 3 . 3 2 . 7 . 3 . . . 1 . 1 . 2 Brawler 2 | . . . . . . . . . . . 1 . . . . . 1 . . . . Duelist 4 | . . . . . . . . 1 1 . 2 . . . . . . . . . . Sentry 23 | . . . . . 8 3 1 . . . . . 5 . 1 . . . 4 . 1 Demolisher 2 | . . . . . . . . . . . . . . . . . 2 . . . . Specialist 1 | . . . . . . . . . . . 1 . . . . . . . . . . Hunter 12 | . . . . . 1 . . . . . 2 2 . . . . . 4 1 . 2 Programmer 13 | . . . . . . 2 2 . . . . 4 . . . . . 1 4 . . Behemoth 1 | . . . . . . . . . . . . . 1 . . . . . . . . Assembled 5 | . . . . . . . . . . . . . . . . 5 . . . . . Best Kill Streak 11 | 1 11 3 . . 5 7 2 7 3 . 10 3 3 . 2 3 2 2 3 . 3 Combat Bots Only 10 | . 3 3 . . 5 3 1 7 3 . 10 3 2 . 2 3 2 2 2 . 3 Max Kills in Single Turn 5 | 1 2 2 . . 3 2 1 3 1 . 5 1 1 . 1 1 1 1 2 . 2 Gunslinging . | . . . . . . . . . . . . . . . . . . . . . . Exploded 5 | . . 2 . . 1 2 . 3 . . 5 . . . . . . . . . 2 Melee 1 | . . . . . . . . . . . . . . . . . 1 . . . . Uniques/NPCs Destroyed . | . . . . . . . . . . . . . . . . . . . . . . Combat | -11 -10 -10 -10 -9 -8 -7 -6 -6 -6 -6 -5 -5 -5 -4 -4 -4 -4 -3 -3 -2 -2 -------- Run | Scr Mat Min Exi Min Mat Fac Fac Low Low Dat Pro Fac Ext Fac Upp Upp War Pro Res Res Tes Damage Taken 17191 | . 213 269 . . 913 693 153 277 151 . 785 738 1094 . 433 835 1656 737 4333 . 3911 Core 2744 | . 10 46 . . 110 94 31 49 . . 56 56 83 . 22 70 76 97 484 . 1460 Absorbed by Shields 281 | . . . . . . . . . . . . . . . 40 55 75 . 111 . . Reduced by Siege Mode 29 | . . . . . . . . . . . . . . . . 29 . . . . . Core Remaining (%) 81 | 100 . . . 77 80 86 . . . . 84 . 86 . . . . 76 62 . . Volleys Fired 487 | 1 30 26 . 1 67 40 17 18 14 . 39 33 32 2 19 17 17 41 68 . 5 Largest 4 | 1 2 2 . 2 3 3 4 4 4 . 4 3 4 1 4 3 4 1 4 . 1 Hottest 261 | 40 90 85 . 75 138 151 213 187 213 . 213 198 247 53 197 197 244 50 261 . 110 Shots Fired 1060 | 1 53 52 . 2 164 107 55 35 38 . 94 73 84 2 33 34 35 43 150 . 5 Gun 711 | 1 33 29 . 1 96 100 55 27 36 . 77 44 53 . 21 27 8 10 93 . . Cannon 324 | . 20 23 . 1 68 5 . . . . 7 29 28 2 12 7 27 33 57 . 5 Launcher 25 | . . . . . . 2 . 8 2 . 10 . 3 . . . . . . . . Special . | . . . . . . . . . . . . . . . . . . . . . . Kinetic 517 | . 20 23 . 1 90 68 28 11 8 . 33 37 45 2 18 24 16 22 71 . . Thermal 249 | . 23 23 . . 25 32 17 . 5 . 7 24 23 . 15 10 8 . 37 . . Explosive 25 | . . . . . . 2 . 8 2 . 10 . 3 . . . . . . . . Electromagnetic 233 | 1 10 6 . 1 49 5 10 16 23 . 44 12 13 . . . . . 38 . 5 Entropic 36 | . . . . . . . . . . . . . . . . . 11 21 4 . . Robot Hit Streak 24 | 1 11 8 . 4 16 17 16 7 17 . 9 13 24 . 6 8 9 7 14 . 3 Robot Miss Streak 7 | . 2 7 . . 5 3 2 1 2 . 2 3 3 . 2 1 2 3 3 . 2 Penetration Max 1 | . . . . . 1 . . . . . 1 . 1 . . . . . . . . Secondary Targets 4 | . . . . . . . . . 1 . 1 . . . . 1 . . 1 . . Max Gunslinging Chain 1 | . . . . . . . . . 1 . 1 . . . . 1 . . 1 . . Shots Hit Robots 680 | 1 33 27 . 2 99 82 37 20 29 . 59 44 63 . 11 27 21 18 98 . 9 Core Hits 319 | 2 21 12 . 1 40 42 18 20 14 . 44 15 26 . 4 9 11 8 30 . 2 Critical Hits 15 | . . . . . . . 1 . . . 1 2 5 . 3 1 . . 2 . . Critical Kills 5 | . . . . . . . . . . . 1 . 2 . 1 . . . 1 . . Critical Parts Destroyed 8 | . . . . . . . 1 . . . . 2 2 . 1 1 . . 1 . . Melee Attacks 11 | . . . . . . . . . . . . . . . . . . . 4 . 7 Impact 9 | . . . . . . . . . . . . . . . . . . . 2 . 7 Slashing . | . . . . . . . . . . . . . . . . . . . . . . Piercing 2 | . . . . . . . . . . . . . . . . . . . 2 . . Sneak Attacks . | . . . . . . . . . . . . . . . . . . . . . . Combat Hostiles . | . . . . . . . . . . . . . . . . . . . . . . Follow-up Attacks . | . . . . . . . . . . . . . . . . . . . . . . Damage Inflicted 19875 | 36 549 483 . 30 2040 1915 916 1216 537 . 2790 1156 1712 . 202 500 1003 953 3444 . 393 Guns 9875 | 12 325 196 . 13 922 1431 834 307 482 . 941 659 932 . 109 452 144 363 1753 . . Cannons 5699 | . 224 213 . 17 810 47 . . . . 180 458 545 . 93 48 832 590 1568 . 74 Explosions 3771 | 24 . 74 . . 306 437 82 909 55 . 1669 . 215 . . . . . . . . Melee 357 | . . . . . . . . . . . . . . . . . . . 48 . 309 Ramming 173 | . . . . . 2 . . . . . . 39 20 . . . 27 . 75 . 10 Kinetic 7405 | . 224 213 . 17 1007 931 449 132 115 . 547 601 984 . 131 254 165 105 1530 . . Thermal 3996 | 24 212 247 . . 491 500 387 . 140 . 109 367 275 . 71 246 144 . 783 . . Explosive 3088 | . . . . . . 295 . 909 . . 1669 . 215 . . . . . . . . Electromagnetic 3241 | 12 113 23 . 13 540 189 80 175 282 . 465 149 218 . . . . . 908 . 74 Impact 357 | . . . . . . . . . . . . . . . . . . . 48 . 309 Slashing . | . . . . . . . . . . . . . . . . . . . . . . Piercing . | . . . . . . . . . . . . . . . . . . . . . . Entropic 1615 | . . . . . . . . . . . . . . . . . 667 848 100 . . Highest Corruption 19 | . . . . . 3 3 5 5 5 . 2 3 3 . . 3 8 10 19 . 2 Average Corruption 4 | . . . . . 3 2 4 5 4 . 2 1 3 . . 3 6 8 5 . 1 Corruption Purged 5 | . . . . . . . . . 5 . . . . . . . . . . . . Effects 226 | . . . . . 30 17 15 27 27 . 2 1 20 . . 2 6 48 30 . 1 Message Errors 52 | . . . . . 7 4 5 7 7 . . 1 4 . . . 1 12 4 . . Matter Fused 49 | . . . . . 7 3 5 4 6 . . . 5 . . 2 1 10 6 . . Heat Flow Errors 32 | . . . . . 6 4 1 4 4 . . . 6 . . . 1 2 4 . . Energy Discharges 20 | . . . . . 3 . 2 5 2 . . . 2 . . . . 6 . . . Parts Rejected 1 | . . . . . . . . . . . . . . . . . . . 1 . . Data Loss (minor) 20 | . . . . . 2 2 1 3 1 . 1 . 1 . . . 1 4 3 . 1 Data Loss (major) 8 | . . . . . . . . . 3 . . . . . . . . 5 . . . Misfires 7 | . . . . . . . . 2 2 . . . . . . . 1 2 . . . Misdirections 4 | . . . . . . . . . . . . . . . . . . 2 2 . . Targeting Errors 29 | . . . . . 5 3 1 1 2 . 1 . 2 . . . 1 5 8 . . Weapon Failures 4 | . . . . . . 1 . 1 . . . . . . . . . . 2 . . Overload Shots 7 | . . . . . . . . . . . . . . . . . . . 7 . . Overflow Damage 436 | . . 18 . . 10 100 23 12 . . 51 . 10 . . . . 95 77 . 40 Projectiles 224 | . . 14 . . 10 17 . . . . 7 . 4 . . . . 95 77 . . Explosions 172 | . . 4 . . . 83 23 12 . . 44 . 6 . . . . . . . . Melee 40 | . . . . . . . . . . . . . . . . . . . . . 40 Knockbacks 36 | . 3 7 . 1 4 . . . . . . 2 3 . 2 . . 1 13 . . Impact 2 | . . . . . . . . . . . . . 1 . . . . . 1 . . Kinetic 31 | . 3 7 . 1 4 . . . . . . 2 2 . 2 . . 1 9 . . Secondary 3 | . . . . . . . . . . . . . . . . . . . 3 . . Self-Inflicted Damage 100 | . . . . . . . 47 . . . 19 . . . . . . . 30 . 4 Shots 2 | . . . . . . . 1 . . . 1 . . . . . . . . . . Rammed 13 | . 1 . . . . . . . . . . . 1 . . . 1 . 8 . 2 Targets Rammed 16 | . 1 . . . 1 . . . . . . 1 1 . . . 2 . 8 . 2 Kicked . | . . . . . . . . . . . . . . . . . . . . . . Crushed 3 | . . . . . 1 . . . . . . 1 . . . . 1 . . . . Highest Temperature 622 | . 183 333 . 15 249 230 262 199 285 . 309 315 247 . 269 287 292 81 622 . 30 Average Temperature 94 | . 54 103 . 10 72 61 91 54 110 . 97 123 85 . 81 175 150 47 146 . 16 Received Heat Transfer 1546 | . 57 69 . . 270 198 36 99 54 . 126 . 201 . 27 . 121 . 72 . 216 Effects 16 | . . 2 . . . . . . . . 1 2 1 . . . . . 10 . . Energy Bleed 3 | . . 1 . . . . . . . . . . 1 . . . . . 1 . . Interference 10 | . . . . . . . . . . . 1 2 . . . . . . 7 . . Matter Decay 2 | . . 1 . . . . . . . . . . . . . . . . 1 . . Damage (major) 1 | . . . . . . . . . . . . . . . . . . . 1 . . Siege Activations 1 | . . . . . . . . . . . . . . . . 1 . . . . . Total Turns 44 | . . . . . . . . . . . . . . . . 44 . . . . . Longest Duration 44 | . . . . . . . . . . . . . . . . 44 . . . . . Robots Corrupted 5 | . . . . . . . . 1 1 . . . . . . . . . 3 . . Combat Hostiles 4 | . . . . . . . . 1 1 . . . . . . . . . 2 . . Parts Fried 18 | . 1 . . . 2 . . . 1 . . . 2 . . . . . 5 . 7 Impact Corruptions 3 | . . . . . . . . . . . . . . . . . . . 1 . 2 Robots Melted . | . . . . . . . . . . . . . . . . . . . . . . Combat Hostiles . | . . . . . . . . . . . . . . . . . . . . . . Parts Melted 9 | . . . . . 2 3 2 . . . . . . . 1 . . . 1 . . Heat Transferred 6606 | 50 629 568 . . 707 1036 750 . 250 . 250 518 407 . 111 333 94 . 903 . . Parts Sabotaged . | . . . . . . . . . . . . . . . . . . . . . . Parts Stolen . | . . . . . . . . . . . . . . . . . . . . . . Parts Stripped . | . . . . . . . . . . . . . . . . . . . . . . Power Chain Reactions 8 | 1 . 1 . . 3 . 2 . 1 . . . . . . . . . . . . Missiles Intercepted 2 | . . . . . . . . . . . . . . . . . 2 . . . . Alert | -11 -10 -10 -10 -9 -8 -7 -6 -6 -6 -6 -5 -5 -5 -4 -4 -4 -4 -3 -3 -2 -2 ------- Run | Scr Mat Min Exi Min Mat Fac Fac Low Low Dat Pro Fac Ext Fac Upp Upp War Pro Res Res Tes Peak Influence 453 | 5 301 275 . . 294 436 226 . . . . 178 453 177 . . . . 163 15 70 Initial 189 | . 3 39 . . . 51 189 . . . . 146 86 175 . . . . 20 15 8 Average 121 | 1 81 177 . . 117 92 88 . . . . 77 307 174 . . . . 67 15 20 Maximum Alert Level 2 | . 1 1 . . 1 2 1 . . . . . 2 . . . . . . . . Low Security (%) 79 | 100 83 45 . 100 80 89 96 . . . . 100 9 100 . . . . 100 100 100 Level 1 18 | . 16 54 . . 19 9 3 . . . . . 77 . . . . . . . . Level 2 2 | . . . . . . 1 . . . . . . 13 . . . . . . . . Level 3 . | . . . . . . . . . . . . . . . . . . . . . . Level 4 . | . . . . . . . . . . . . . . . . . . . . . . Level 5 . | . . . . . . . . . . . . . . . . . . . . . . High Security . | . . . . . . . . . . . . . . . . . . . . . . Max Security . | . . . . . . . . . . . . . . . . . . . . . . Squads Dispatched 27 | . 2 1 . . 2 3 3 . . . . 3 1 . . . . . 7 . 5 Investigation 5 | . 1 . . . . 1 . . . . . . 1 . . . . . 1 . 1 Extermination 11 | . . . . . . 2 3 . . . . 2 . . . . . . 3 . 1 Reinforcement 8 | . 1 . . . 1 . . . . . . 1 . . . . . . 3 . 2 Assault 2 | . . 1 . . . . . . . . . . . . . . . . . . 1 Garrison 1 | . . . . . 1 . . . . . . . . . . . . . . . . Intercept . | . . . . . . . . . . . . . . . . . . . . . . Construction Impeded 2 | . . . . . . . . . . . . . . . . . . . 2 . . Haulers Reinforced 1 | . . . . . . . . . . . . . . . . . . . 1 . . Stealth | -11 -10 -10 -10 -9 -8 -7 -6 -6 -6 -6 -5 -5 -5 -4 -4 -4 -4 -3 -3 -2 -2 --------- Run | Scr Mat Min Exi Min Mat Fac Fac Low Low Dat Pro Fac Ext Fac Upp Upp War Pro Res Res Tes Distress Signals 12 | . 3 . . . 1 2 . . . . . . 2 . . . . . 1 . 3 Communications Jammed . | . . . . . . . . . . . . . . . . . . . . . . Distress Signals . | . . . . . . . . . . . . . . . . . . . . . . Times Spotted 220 | . 16 13 . . 25 20 6 9 3 . 30 9 28 . 5 8 10 5 19 . 14 Peak Tracking Total 9 | . 5 3 . . 6 4 2 4 3 . 8 3 5 . 4 7 6 2 7 . 9 Tactical Retreats 16 | . . . . . 2 1 . . 1 . 2 1 2 . 1 2 1 . 1 . 2 Traps | -11 -10 -10 -10 -9 -8 -7 -6 -6 -6 -6 -5 -5 -5 -4 -4 -4 -4 -3 -3 -2 -2 ------- Run | Scr Mat Min Exi Min Mat Fac Fac Low Low Dat Pro Fac Ext Fac Upp Upp War Pro Res Res Tes Traps Triggered 8 | . 1 . . . . 2 3 . . . . . 1 . . . . . . . 1 Indirectly . | . . . . . . . . . . . . . . . . . . . . . . Trap Hack Attempts . | . . . . . . . . . . . . . . . . . . . . . . Triggered . | . . . . . . . . . . . . . . . . . . . . . . Disarmed . | . . . . . . . . . . . . . . . . . . . . . . Reprogrammed . | . . . . . . . . . . . . . . . . . . . . . . Reused 1 | . . . . . . . . . . . . . . . . . . . . . 1 Traps Extracted . | . . . . . . . . . . . . . . . . . . . . . . Installed 1 | . . . . . . . . . . . . . . . . . . . . . 1 Triggered 14 | . . . . . . . . . 2 . . . . . . . 10 . . . 2 Machines | -11 -10 -10 -10 -9 -8 -7 -6 -6 -6 -6 -5 -5 -5 -4 -4 -4 -4 -3 -3 -2 -2 ---------- Run | Scr Mat Min Exi Min Mat Fac Fac Low Low Dat Pro Fac Ext Fac Upp Upp War Pro Res Res Tes Machines Disabled 22 | . . 2 . . . 14 1 . . . 1 1 2 . . . . . 1 . . Max in Single Turn 7 | . . 1 . . . 7 1 . . . 1 1 1 . . . . . 1 . . Energy Cycler 1 | . . . . . . . . . . . . . 1 . . . . . . . . Machines Sabotaged . | . . . . . . . . . . . . . . . . . . . . . . Garrisons Compromised . | . . . . . . . . . . . . . . . . . . . . . . Overloaded Fab Kills . | . . . . . . . . . . . . . . . . . . . . . . Fab Network Shutdowns . | . . . . . . . . . . . . . . . . . . . . . . Hacking | -11 -10 -10 -10 -9 -8 -7 -6 -6 -6 -6 -5 -5 -5 -4 -4 -4 -4 -3 -3 -2 -2 --------- Run | Scr Mat Min Exi Min Mat Fac Fac Low Low Dat Pro Fac Ext Fac Upp Upp War Pro Res Res Tes Machines Accessed 44 | . . . . . 8 5 8 1 3 4 . 4 5 . 1 1 3 . 1 . . Terminals 24 | . . . . . 7 4 4 . 1 . . 2 5 . . . . . 1 . . Fabricators 1 | . . . . . . . . . . . . 1 . . . . . . . . . Repair Stations 1 | . . . . . . . 1 . . . . . . . . . . . . . . Recycling Units 4 | . . . . . 1 . 2 . . . . 1 . . . . . . . . . Scanalyzers 1 | . . . . . . . 1 . . . . . . . . . . . . . . Garrison Access 1 | . . . . . . 1 . . . . . . . . . . . . . . . Total Hacks 119 | . . . . . 26 8 24 1 4 24 . 8 10 . 1 1 4 . 8 . . Successful 78 | . . . . . 16 2 13 1 4 24 . 2 5 . 1 1 4 . 5 . . Failed 41 | . . . . . 10 6 11 . . . . 6 5 . . . . . 3 . . Catastrophic 7 | . . . . . 2 2 . . . . . 2 1 . . . . . . . . Database Lockouts . | . . . . . . . . . . . . . . . . . . . . . . Manual 50 | . . . . . 20 7 10 . . . 1 1 6 . . . 2 . 3 . . Terminals 64 | . . . . . 21 7 14 . 1 . . 3 10 . . . . . 8 . . Fabricators 2 | . . . . . . . . . . . . 2 . . . . . . . . . Repair Stations 3 | . . . . . . . 3 . . . . . . . . . . . . . . Recycling Units 12 | . . . . . 5 . 4 . . . . 3 . . . . . . . . . Scanalyzers 3 | . . . . . . . 3 . . . . . . . . . . . . . . Garrison Access 1 | . . . . . . 1 . . . . . . . . . . . . . . . Terminal Hacks 52 | . . . . . 6 1 4 1 4 24 . . 3 . 1 1 4 . 3 . . Record 12 | . . . . . . . . . 3 7 . . . . . . 2 . . . . Part Schematic 7 | . . . . . . . . . . 7 . . . . . . . . . . . Robot Schematic 7 | . . . . . . . . . . 7 . . . . . . . . . . . Robot Analysis 1 | . . . . . 1 . . . . . . . . . . . . . . . . Prototype ID Bank 4 | . . . . . . . 1 . . 3 . . . . . . . . . . . Open Door 6 | . . . . . . . . 1 1 . . . . . 1 1 2 . . . . Terminal Index 3 | . . . . . 1 . 1 . . . . . . . . . . . 1 . . Alert Level 4 | . . . . . 2 . 1 . . . . . 1 . . . . . . . . Unreport Threat 1 | . . . . . 1 . . . . . . . . . . . . . . . . Locate Traps 3 | . . . . . . . . . . . . . 2 . . . . . 1 . . Zone Layout 4 | . . . . . 1 1 1 . . . . . . . . . . . 1 . . Fabricator Hacks 1 | . . . . . . . . . . . . 1 . . . . . . . . . Load Schematic 1 | . . . . . . . . . . . . 1 . . . . . . . . . Repair Station Hacks 2 | . . . . . . . 2 . . . . . . . . . . . . . . Scan Component 1 | . . . . . . . 1 . . . . . . . . . . . . . . Repair 1 | . . . . . . . 1 . . . . . . . . . . . . . . Recycling Unit Hacks 3 | . . . . . 1 . 1 . . . . 1 . . . . . . . . . Retrieve Components 3 | . . . . . 1 . 1 . . . . 1 . . . . . . . . . Scanalyzer 3 | . . . . . . . 3 . . . . . . . . . . . . . . Insert Component 1 | . . . . . . . 1 . . . . . . . . . . . . . . Analyze 2 | . . . . . . . 2 . . . . . . . . . . . . . . Garrison Access Hacks . | . . . . . . . . . . . . . . . . . . . . . . Unauthorized Hacks 17 | . . . . . 9 1 3 . . . . . 2 . . . . . 2 . . Terminals 15 | . . . . . 7 1 3 . . . . . 2 . . . . . 2 . . Track 8 | . . . . . 3 1 1 . . . . . 2 . . . . . 1 . . Botnet 5 | . . . . . 2 . 2 . . . . . . . . . . . 1 . . Disrupt 1 | . . . . . 1 . . . . . . . . . . . . . . . . Operators 1 | . . . . . 1 . . . . . . . . . . . . . . . . Fabricators . | . . . . . . . . . . . . . . . . . . . . . . Repair Stations . | . . . . . . . . . . . . . . . . . . . . . . Recycling Units 2 | . . . . . 2 . . . . . . . . . . . . . . . . Monitor 1 | . . . . . 1 . . . . . . . . . . . . . . . . Recyclers 1 | . . . . . 1 . . . . . . . . . . . . . . . . Scanalyzers . | . . . . . . . . . . . . . . . . . . . . . . Garrison Access . | . . . . . . . . . . . . . . . . . . . . . . Data Cores Recovered 3 | . . . . . 1 1 1 . . . . . . . . . . . . . . Used 2 | . . . . . 1 . 1 . . . . . . . . . . . . . . Hacking Detections 27 | . . . . . 7 5 6 . . . . 4 4 . . . . . 1 . . Full Trace Events 1 | . . . . . . . . . . . . . 1 . . . . . . . . Feedback Events . | . . . . . . . . . . . . . . . . . . . . . . Feedback Blocked . | . . . . . . . . . . . . . . . . . . . . . . Robot Schematics Acquired 7 | . . . . . . . . . . 7 . . . . . . . . . . . Robots Built . | . . . . . . . . . . . . . . . . . . . . . . Matter . | . . . . . . . . . . . . . . . . . . . . . . Time . | . . . . . . . . . . . . . . . . . . . . . . Total Robot Build Rating . | . . . . . . . . . . . . . . . . . . . . . . Part Schematics Acquired 8 | . . . . . . . 1 . . 7 . . . . . . . . . . . Parts Built . | . . . . . . . . . . . . . . . . . . . . . . Matter . | . . . . . . . . . . . . . . . . . . . . . . Time . | . . . . . . . . . . . . . . . . . . . . . . Total Part Build Rating . | . . . . . . . . . . . . . . . . . . . . . . Parts Repaired 1 | . . . . . . . 1 . . . . . . . . . . . . . . Time 22 | . . . . . . . 22 . . . . . . . . . . . . . . Parts Recycled . | . . . . . . . . . . . . . . . . . . . . . . Recycled Matter . | . . . . . . . . . . . . . . . . . . . . . . Retrieved Matter . | . . . . . . . . . . . . . . . . . . . . . . Retrieved Components 11 | . . . . . . . 8 . . . . 3 . . . . . . . . . Parts Scanalyzed 1 | . . . . . . . 1 . . . . . . . . . . . . . . Part Schematics Acquired 1 | . . . . . . . 1 . . . . . . . . . . . . . . Parts Damaged . | . . . . . . . . . . . . . . . . . . . . . . Bothacking | -11 -10 -10 -10 -9 -8 -7 -6 -6 -6 -6 -5 -5 -5 -4 -4 -4 -4 -3 -3 -2 -2 ------------ Run | Scr Mat Min Exi Min Mat Fac Fac Low Low Dat Pro Fac Ext Fac Upp Upp War Pro Res Res Tes Used RIF Installer . | . . . . . . . . . . . . . . . . . . . . . . Robots Hacked . | . . . . . . . . . . . . . . . . . . . . . . Non-combat . | . . . . . . . . . . . . . . . . . . . . . . Combat . | . . . . . . . . . . . . . . . . . . . . . . Robot Hacks Applied . | . . . . . . . . . . . . . . . . . . . . . . Relay Couplers Released . | . . . . . . . . . . . . . . . . . . . . . . Robots Rewired 18 | . . . . . . . . . . . 1 . 17 . . . . . . . . Allies Hacked 4 | . . . . . . . . . . . . . 4 . . . . . . . . Hacks Repelled . | . . . . . . . . . . . . . . . . . . . . . . Allies | -11 -10 -10 -10 -9 -8 -7 -6 -6 -6 -6 -5 -5 -5 -4 -4 -4 -4 -3 -3 -2 -2 -------- Run | Scr Mat Min Exi Min Mat Fac Fac Low Low Dat Pro Fac Ext Fac Upp Upp War Pro Res Res Tes Total Allies 22 | . . 1 . . . . . . . . 2 . 19 . . . . . . . . Largest Group 8 | . . 1 . . . . . . . . 1 . 8 3 2 1 . . . . . Highest-Rated Group 216 | . . 31 . . . . . . . . 94 . 216 99 68 31 . . . . . Highest-Rated Ally 94 | . . 31 . . . . . . . . 94 . 37 37 37 31 . . . . . Total Orders 7 | . . . . . . . . . . . . . 3 . 4 . . . . . . STAY 4 | . . . . . . . . . . . . . 2 . 2 . . . . . . FOLLOW 3 | . . . . . . . . . . . . . 1 . 2 . . . . . . Ally Attacks 178 | . . 8 . . . . . . . . 9 . 140 . 19 2 . . . . . Total Damage 3510 | . . 105 . . . . . . . . 376 . 2757 . 230 42 . . . . . Kills 26 | . . 4 . . . . . . . . 3 . 18 . 1 . . . . . . Allies Corrupted . | . . . . . . . . . . . . . . . . . . . . . . Allies Melted . | . . . . . . . . . . . . . . . . . . . . . . Intel | -11 -10 -10 -10 -9 -8 -7 -6 -6 -6 -6 -5 -5 -5 -4 -4 -4 -4 -3 -3 -2 -2 ------- Run | Scr Mat Min Exi Min Mat Fac Fac Low Low Dat Pro Fac Ext Fac Upp Upp War Pro Res Res Tes Robot Analysis Total 1 | . . . . . 1 . . . . . . . . . . . . . . . . Derelict Logs Recovered 5 | . . . . . . . . 2 1 . . . . . . 2 . . . . . Drone Launches 1 | . . . . . . . . . . . . . . . . . . . . . 1 Drone Recoveries 1 | . . . . . . . . . . . . . . . . . . . . . 1 Decoded 0b10 Intel 19 | . . . . . . . . . . . . . . . . . . . 19 . . Emergency Access 3 | . . . . . . . . . . . . . . . . . . . 3 . . Items 14 | . . . . . . . . . . . . . . . . . . . 14 . . Machines 1 | . . . . . . . . . . . . . . . . . . . 1 . . Patrols 1 | . . . . . . . . . . . . . . . . . . . 1 . . Exploration | -11 -10 -10 -10 -9 -8 -7 -6 -6 -6 -6 -5 -5 -5 -4 -4 -4 -4 -3 -3 -2 -2 ------------- Run | Scr Mat Min Exi Min Mat Fac Fac Low Low Dat Pro Fac Ext Fac Upp Upp War Pro Res Res Tes Turns Passed 19003 | 71 422 297 263 123 1821 2191 1328 1134 1368 134 1342 1158 1481 268 873 521 1388 1335 1112 98 275 Spaces Moved 9416 | 47 214 172 214 93 834 1145 759 669 566 85 689 550 638 158 466 274 800 353 431 67 192 Core 42 | 9 . . . . . . . . . . . . . . . . . . . . 33 Treads 8339 | 1 . . . . 798 1145 759 669 566 85 689 550 638 158 466 274 800 353 388 . . Legs 786 | 37 214 172 214 93 36 . . . . . . . . . . . . . . . 20 Wheels 249 | . . . . . . . . . . . . . . . . . . . 43 67 139 Hover . | . . . . . . . . . . . . . . . . . . . . . . Flight . | . . . . . . . . . . . . . . . . . . . . . . Fastest Speed 50 | 50 120 120 120 120 120 158 158 158 158 158 156 159 162 162 162 160 160 180 120 100 50 Average Speed 159 | 112 120 120 120 120 160 161 158 158 158 158 169 161 164 162 162 161 161 205 184 115 104 Slowest Speed 250 | 160 150 120 120 120 180 162 158 158 158 158 178 162 183 162 162 180 180 240 240 120 250 Overloaded Moves . | . . . . . . . . . . . . . . . . . . . . . . Propulsion Burnouts . | . . . . . . . . . . . . . . . . . . . . . . Robots Hopped 2 | . . . . . . . . . . . . . 2 . . . . . . . . Cave-ins Triggered . | . . . . . . . . . . . . . . . . . . . . . . Exploration Rate (%) 45 | 4 32 52 52 27 61 28 17 80 71 75 78 10 85 5 56 58 92 63 17 1 27 Regions Visited 21 Branch Regions 13 Pre-discovered Areas 3 | . . . . . . . . 1 . 1 . . . . . 1 . . . . . Known Exits Taken 16 | . . . . . 1 1 1 1 1 1 1 1 1 1 1 1 1 1 1 1 . Unknown Exits Taken 5 | 1 1 1 1 1 . . . . . . . . . . . . . . . . . Scrap Searched 13 | . . 1 . . . . . 2 2 . 2 . . . 3 1 . 2 . . . Spaces Dug 69 | . . . . . 4 . . 19 16 . . 4 . 1 8 . . 11 6 . . Terrain Destroyed 381 | 6 . 2 . . 22 54 7 114 25 . 64 9 20 1 10 . 3 26 18 . . Melee 3 | . . . . . . . . . . . . . . . . . . . 3 . . Projectile 78 | . . . . . 8 . . . . . 1 9 5 1 10 . 3 26 15 . . AOE 300 | 6 . 2 . . 14 54 7 114 25 . 63 . 15 . . . . . . . . Terrain Rammed . | . . . . . . . . . . . . . . . . . . . . . . Walls Destroyed . | . . . . . . . . . . . . . . . . . . . . . . Machines Disabled . | . . . . . . . . . . . . . . . . . . . . . . Actions | -11 -10 -10 -10 -9 -8 -7 -6 -6 -6 -6 -5 -5 -5 -4 -4 -4 -4 -3 -3 -2 -2 --------- Run | Scr Mat Min Exi Min Mat Fac Fac Low Low Dat Pro Fac Ext Fac Upp Upp War Pro Res Res Tes Total 12510 | 61 324 210 221 102 1190 1419 849 717 1009 85 781 760 995 169 553 317 873 924 613 88 250 Wait 1900 | . 64 6 2 9 221 170 44 20 415 1 5 149 108 5 51 16 21 513 47 15 18 Move 9391 | 46 213 171 213 92 833 1144 758 668 565 84 688 549 633 157 465 273 799 352 430 66 192 Hop 2 | . . . . . . . . . . . . . 2 . . . . . . . . Pick Up 86 | 3 4 . 3 . 13 22 5 1 3 . 3 6 2 . 3 1 6 . 6 . 5 Fast Attach 99 | 8 2 2 . . 16 4 5 1 1 . 4 5 9 1 . 4 6 1 24 1 5 Attach 56 | 1 . 2 . . 6 3 2 1 . . 2 2 2 2 3 1 4 8 5 4 8 Detach 39 | 2 2 1 . . 3 2 1 2 . . 1 . 2 2 . . 4 7 5 1 4 Swap 96 | . 5 1 . . 9 17 9 5 7 . 10 7 5 . 8 4 2 2 5 . . Drop 109 | . 3 1 3 . 21 17 8 1 4 . 8 8 5 . 2 1 12 . 11 1 3 Fire 487 | 1 30 26 . 1 67 40 17 18 14 . 39 33 32 2 19 17 17 41 68 . 5 Melee 11 | . . . . . . . . . . . . . . . . . . . 4 . 7 Ram 7 | . . . . . . . . . . . . . . . . . . . 7 . . Kick 3 | . 1 . . . . . . . . . . . . . . . . . . . 2 Crush 6 | . . . . . 1 . . . . . . 1 1 . . . 2 . 1 . . Escape Stasis 2 | . . . . . . . . . . . . . 2 . . . . . . . . Rewire 215 | . . . . . . . . . . . 21 . 192 . 2 . . . . . . Trap 1 | . . . . . . . . . . . . . . . . . . . . . 1 Miscellaneous . | . . . . . . . . . . . . . . . . . . . . . . Route ------- -11/Scrapyard -10/Materials -10/Mines (discovered 2 exits: [*Mat] / [*Exi]) -10/Exiles -9/Mines -8/Materials -7/Factory -6/Factory -6/Lower Caves -6/Lower Caves (discovered 2 exits: *Fac / *Dat) -6/Data Miner -5/Proximity Caves -5/Factory (discovered 3 exits: Fac / *Ext x2) -5/Extension (discovered 3 exits: *Fac x2 / *Cet) -4/Factory -4/Upper Caves -4/Upper Caves (discovered 2 exits: Res / *War) -4/Warlord -3/Proximity Caves -3/Research -2/Research -2/Testing History --------- Turn | Location | Event 7 | -11/Scrapyard | Discovered new exit (range 15) 72 | -11/Scrapyard | Entered Materials 309 | -10/Materials | Build established: Mutant 476 | -10/Materials | Discovered new exit (range 9) 494 | -10/Materials | Entered Mines 495 | -10/Mines | Met a Derelict testing a Signal Generator 774 | -10/Mines | Discovered new exit (range 16) 785 | -10/Mines | Deemed a non-threat by the Exiles lab entrance 786 | -10/Mines | Discovered new exit (range 5) 791 | -10/Mines | Entered Exiles 821 | -10/Exiles | Met 8R-AWN 841 | -10/Exiles | Met EX-HEX 875 | -10/Exiles | Met EX-BIN 895 | -10/Exiles | Met EX-DEC 984 | -10/Exiles | Discovered new exit (range 15) 1054 | -10/Exiles | Entered Mines 1056 | -9/Mines | Met a Derelict bent on vengeance 1164 | -9/Mines | Discovered new exit (range 13) 1177 | -9/Mines | Entered Materials 1177 | -8/Materials | Evolved 4 slots: Propulsion x1, Utility x2, Weapon x1 1953 | -8/Materials | Build established: Skirmisher 2761 | -8/Materials | Build established: Mutant 2797 | -8/Materials | Garrison activated, responded to threat 2944 | -8/Materials | Discovered new exit (range 15) 2997 | -8/Materials | Identified exit to Factory 2998 | -8/Materials | Entered Factory 2998 | -7/Factory | Evolved 2 slots: Propulsion x1, Utility x1 3493 | -7/Factory | Build established: Hauler-Skirmisher 5137 | -7/Factory | Discovered new exit (range 5) 5142 | -7/Factory | Identified exit to Factory 5189 | -7/Factory | Entered another Factory area 5189 | -6/Factory | Evolved 2 slots: Utility x1, Weapon x1 6287 | -6/Factory | Repaired Lrn. Sensor Array 6508 | -6/Factory | Discovered new exit (range 6) 6516 | -6/Factory | Identified exit to Lower Caves 6517 | -6/Factory | Entered Lower Caves 7011 | -6/Lower Caves | Spotted B-75 Beast 7188 | -6/Lower Caves | Destroyed 7 combat bots 7601 | -6/Lower Caves | Discovered new exit (range 14) 7650 | -6/Lower Caves | Identified exit to Lower Caves 7651 | -6/Lower Caves | Entered another Lower Caves area 7673 | -6/Lower Caves | Discovered new exit (range 11) 7850 | -6/Lower Caves | Encountered a Warlord checkpoint 8456 | -6/Lower Caves | Build established: Hauler-Mutant 8891 | -6/Lower Caves | Discovered new exit (range 12) 8934 | -6/Lower Caves | Learned 8 Factory zone layouts 9018 | -6/Lower Caves | Identified exit to Data Miner 9019 | -6/Lower Caves | Entered Data Miner 9019 | -6/Data Miner | Discovered new exit (range 6) 9040 | -6/Data Miner | Met Data Miner 9088 | -6/Data Miner | Learned location of Section 7 (-2) 9088 | -6/Data Miner | Acquired the access code to Warlord's prototype stash 9115 | -6/Data Miner | Received God Mode back door access code from Data Miner 9152 | -6/Data Miner | Identified exit to Proximity Caves 9153 | -6/Data Miner | Entered Proximity Caves 9201 | -5/Proximity Caves | Escorted by Enhanced Grunt 9291 | -5/Proximity Caves | Found Prototype Device 9291 | -5/Proximity Caves | Identified Exp. Thermal Shield 9510 | -5/Proximity Caves | Build established: Hauler-Skirmisher 9588 | -5/Proximity Caves | Destroyed 10 combat bots 10015 | -5/Proximity Caves | Acquired the password to a Derelict Tinkerer's latest research 10040 | -5/Proximity Caves | Found Prototype Special Weapon 10311 | -5/Proximity Caves | Build established: Hauler-Mutant 10457 | -5/Proximity Caves | Discovered new exit (range 16) 10493 | -5/Proximity Caves | Identified exit to Factory 10495 | -5/Proximity Caves | Entered Factory 10495 | -5/Factory | Evolved 2 slots: Propulsion x1, Utility x1 10496 | -5/Factory | Identified exit to Extension 10497 | -5/Factory | Identified exit to Factory 11162 | -5/Factory | Build established: Hauler-Skirmisher 11653 | -5/Factory | Entered Extension 11726 | -5/Extension | Energy Cycler disabled 11727 | -5/Extension | Rescued a captive Derelict 11727 | -5/Extension | Rescued a captive Derelict 11727 | -5/Extension | Rescued a captive Derelict 11727 | -5/Extension | Rescued a captive Derelict 11728 | -5/Extension | Rescued a captive Derelict 11728 | -5/Extension | Rescued a captive Derelict 11729 | -5/Extension | Rescued a captive Derelict 11729 | -5/Extension | Rescued a captive Derelict 11730 | -5/Extension | Rescued a captive Derelict 11731 | -5/Extension | Rescued a captive Derelict 11732 | -5/Extension | Rescued a captive Derelict 11742 | -5/Extension | Rescued a captive Derelict 12212 | -5/Extension | Spotted B-75 Beast 12568 | -5/Extension | Build established: Scavenger-Mutant 12637 | -5/Extension | Spotted B-75 Beast 12652 | -5/Extension | Allies destroyed B-75 Beast 12663 | -5/Extension | Discovered exit to Factory (range 17) 12682 | -5/Extension | Destroyed B-75 Beast 12991 | -5/Extension | Build established: Scavenger-Tank 13006 | -5/Extension | Extracted ID and sensor layout for unrecognized location from A7's data core 13018 | -5/Extension | Found Prototype Protection 13018 | -5/Extension | Identified Med. Regenerative Plating 13087 | -5/Extension | Discovered exit to Factory (range 10) 13088 | -5/Extension | Discovered new exit (range 6) 13109 | -5/Extension | Identified exit to Cetus 13134 | -5/Extension | Entered Factory 13134 | -4/Factory | Accompanied by 3 allies 13134 | -4/Factory | Evolved 2 slots: Utility x2 13346 | -4/Factory | Discovered new exit (range 23) 13401 | -4/Factory | Identified exit to Upper Caves 13402 | -4/Factory | Entered Upper Caves 13402 | -4/Upper Caves | Accompanied by 2 allies 13476 | -4/Upper Caves | Attracted the attention of an 0b10 checkpoint 14170 | -4/Upper Caves | Spotted B-86 Titan 14256 | -4/Upper Caves | Discovered new exit (range 8) 14270 | -4/Upper Caves | Identified exit to Upper Caves 14275 | -4/Upper Caves | Entered another Upper Caves area 14275 | -4/Upper Caves | Accompanied by 1 ally 14307 | -4/Upper Caves | Discovered new exit (range 18) 14334 | -4/Upper Caves | Learned Research trap positions 14336 | -4/Upper Caves | Build established: Hauler-Skirmisher 14670 | -4/Upper Caves | Lost 4 parts (1n1u2w) 14750 | -4/Upper Caves | Discovered new exit (range 24) 14794 | -4/Upper Caves | Identified exit to Warlord 14796 | -4/Upper Caves | Entered Warlord 14849 | -4/Warlord | System corruption cleaned by Quarantine Array 14906 | -4/Warlord | Found Prototype Device 14906 | -4/Warlord | Identified Minesniffer Drone Bay 15179 | -4/Warlord | Received a Watcher feed algorithm from an ecstatic Tinkerer 15203 | -4/Warlord | Build established: Scavenger-Skirmisher 15281 | -4/Warlord | Met Warlord 15306 | -4/Warlord | Warlord's base attacked by MAIN.C 15336 | -4/Warlord | Opened Warlord's prototype stash 15354 | -4/Warlord | Found Prototype Hackware 15359 | -4/Warlord | Found Prototype Processor 15359 | -4/Warlord | Identified Exp. Core Analyzer 15371 | -4/Warlord | Found Prototype Reactor 15580 | -4/Warlord | Build established: Hauler-Skirmisher 15627 | -4/Warlord | Found Prototype Energy Cannon 15627 | -4/Warlord | Identified Vortex Cannon 15632 | -4/Warlord | Found Vortex Cannon 15640 | -4/Warlord | Found Prototype Energy Gun 15656 | -4/Warlord | Warlord forces counterattacked 15892 | -4/Warlord | Opened side exit 16142 | -4/Warlord | Lost 5 parts (2n1u2w) 16168 | -4/Warlord | Discovered new exit (range 10) 16182 | -4/Warlord | Identified exit to Proximity Caves 16184 | -4/Warlord | Entered Proximity Caves 16343 | -3/Proximity Caves | Build established: Hauler-Mutant 16921 | -3/Proximity Caves | System corruption reached 10% 17383 | -3/Proximity Caves | Identified Vortex Rail 17438 | -3/Proximity Caves | Discovered new exit (range 20) 17517 | -3/Proximity Caves | Identified exit to Research 17519 | -3/Proximity Caves | Entered Research 17519 | -3/Research | Evolved 2 slots: Power x1, Propulsion x1 17519 | -3/Research | Identified Vortex Chain Reactor 17520 | -3/Research | Loaded intel: 65 trap records 18149 | -3/Research | Build established: Hauler-Skirmisher 18365 | -3/Research | Spotted B-86 Titan 18572 | -3/Research | System corruption reached 10% 18601 | -3/Research | Discovered new exit (range 21) 18630 | -3/Research | Identified exit to Research 18631 | -3/Research | Entered another Research area 18631 | -2/Research | Warlord forces began assault on 0b10 18631 | -2/Research | Evolved 2 slots: Utility x1, Weapon x1 18637 | -2/Research | Discovered new exit (range 14) 18649 | -2/Research | Lost 15 parts (4n7u4w) 18653 | -2/Research | Identified exit to Testing 18729 | -2/Research | Entered Testing 18745 | -2/Testing | Protovariant out of control (PD-XQD3STG09H) 18773 | -2/Testing | Incoming investigation squad redirected 18814 | -2/Testing | Build established: Hauler-Mutant 18886 | -2/Testing | Unstable Terrabomb Derivative detonated 18897 | -2/Testing | Found Prototype Energy Cannon 18917 | -2/Testing | Identified Hpw. Disruptor Cannon 18945 | -2/Testing | Core integrity fell below 50% 18971 | -2/Testing | Core integrity fell below 20% 18971 | -2/Testing | Found Prototype Hackware 18971 | -2/Testing | Identified System Mapper 19000 | -2/Testing | Spotted Striker 19003 | -2/Testing | Spotted Striker 19004 | -2/Testing | Destroyed by H-88 Terminator with KE Penetrator Last Messages --------------- 18984_ H-88 Terminator IFF system glitched. 18984_ Slug penetrates Wall. 18985_ Penetrated by Slug. 18985_ Myomer Leg destroyed. 18985_ Penetrated by Slug. 18986_ System corrupted: Component data lost. 18987_ Penetrated by Slug. 18987_ Myomer Leg destroyed. 18988_ Slug penetrates Wall. 18991_ Penetrated by Slug. 18994_ Lgt. Quantum Reactor destroyed. 18996_ Penetrated by Slug. 18996_ Slug penetrates Wall. 18998_ O-24 Administrator: "IFF HANDSHAKE FAILED. SECURING TERMINAL." 18999_ O-24 Administrator uses terminal to summon reinforcements. 18999_ ALERT: Hostiles spotted, dispatching reinforcements to Terminal T002. 18999_ O-24 Administrator locks terminal. 19004_ Slug penetrates Wall. [Achievement: I Was Wrong!] Map ----- +----------------------------------------------------+ | ?????????????????????# ############ # """ | | ?????????????????????# # """ | | ?????????????????????# % | | ?????????????????????###############!=# | | ???????????????????????????????????#%!#???? | | ??????????????????????????????#????#[%#???? | | ??????????????????????????????#"???#][#???? | | ??????????????????????????????" ??#![#???? | | ??????????????????????????????" ?#!=##### | | ????????????????????????????##" *#|%# | | ????????????????????????????#"! "=%#=*#! | | ????????????????????????????#"!""!=]%! ! | | ?????????????????????????????#######!!#! | | ???????????????????#################[ # | | ???????????????????# [! # | | ???????????????????# ^ ##### | | ???????????????????# """"" #???? | | ???????????????????# """"" ### # ####?? | | ???????????????????# """"" # #?? | | ???????????????????# """# !![ ] #?? | | ???????????????????# oT"# !!! #?? | | ???????????????????# """# ![ #?? | | ???????????????????# #?? | | ???????????????????# # ] """ #?? | | ???????????##K###### ######### """ #?? | | ???????????+ @ #???????# ! """ #?? | | ???????????+ #???????# #?? | | ???????????##K##########???????##########?? | | ??????????????????????????????????????????? | | ??????????????????????????????????????????? | | ??????????????????????????????????????????? | | ??????????????????????????????????????????? | | ??????????????????????????????????????????? | | ??????????????????????????????????????????? | | ??????????????????????????????????????????? | | ??????????????????????????????????????????? | | ??????????????????????????????????????????? | | | | | | | | | | | | | | | | | | | | | | | | | | | +----------------------------------------------------+ Best States ------------- Heat Dissipation 68 Coolant Potential 80 Energy Generation 55 Energy Capacity 700 Matter Stores 300 Matter Capacity 300 Sight Range 22 Robot Scan Range 20 Terrain Scan Range 24 Terrain Scan Density 210 Power Amplification 40 Armor Coverage 900 Resistance: TH 30 Point Defense Rating 80 Evasion (%) 50 Targeting Accuracy 8 Core Analysis 15 Recoil Reduction 5 Offensive Hacking 20 Defensive Hacking 10 Item Schematics ----------------- Prc. Assault Rifle | -6/Factory | Scanalyzed Combat Drone Bay | -6/Data Miner | Free Lgt. Regenerative Plating | -6/Data Miner | Free Cmb. Gravmag System | -6/Data Miner | Free Exp. Sensor Array | -6/Data Miner | Free Exp. Terrain Scan Processor | -6/Data Miner | Free Tactical Coordination Suite | -6/Data Miner | Free Kinetic Spear | -6/Data Miner | Free Robot Schematics ------------------ S-27 Virus | -6/Data Miner | Free G-50 Soldier | -6/Data Miner | Free G-67 Veteran | -6/Data Miner | Free L-41 Fighter | -6/Data Miner | Free X-72 Disruptor | -6/Data Miner | Free H-66 Slayer | -6/Data Miner | Free I-36 Angel | -6/Data Miner | Free Fabricated ------------ Nothing Alien Tech Used ----------------- None Achievements -------------- I Was Wrong! Challenges ------------ None Game ------ Seed CoolantUltimateAutohacker Manual? 0 Play Time 02:36:46 Cumulative 235.6 hours Start 2021.05.22 @ 16:19:18 End 2021.05.24 @ 12:42:07 Sessions 3 Manual Loads 0 Difficulty Rogue Special Mode None Game No. 332 Rogue 328 Adventurer 0 Explorer 4 Win Type - Total 3 Types 3/0/0/0/0/0/0/0/0 Lore% 75 Gallery% 86 Achievement% 59 Wizard Run 0 Options --------- ASCII 1 Keyboard 1 Movement Numpad Keybinds 0 Fullscreen 2 Font 18/X11 Map View 76x50 Tactical HUD 1 Map Filters NONE Filters NONE Steam 1 RUN: 8d45602a-e033-4ace-9f70-5a594775a229